{"text_format":"3","workbook":"xlsx","n_sheets":1,"sheets":["RELATÓRIO DE DESPESAS"],"not_rendered":{"defined_names":4},"read":"whole","date_system":"1900"}

{"sheet":"RELATÓRIO DE DESPESAS","index":0,"n_rows":22,"n_cols":12,"rows_kept":22,"merged":[[1,2,1,3],[1,5,1,6],[3,2,3,3],[3,6,3,7],[3,10,3,11],[4,2,4,3],[4,6,4,7],[4,10,4,11],[20,2,20,4],[20,6,20,8],[21,2,21,4],[21,6,21,8]]}
[null,"RELATÓRIO DE DESPESAS",{"$nulls":8},"Para Utilização Apenas em Trabalho"]
[null,"OBJETIVO:",null,null,"NÚMERO DO EXTRATO:",null,null,"PERÍODO DE PAGAMENTO","DE:",{"$f":"IF(COUNTA(DadosDeDespesas[Data])=0,\"\",MIN(DadosDeDespesas[Data]))","v":""},"PARA:",{"$f":"IF(COUNTA(DadosDeDespesas[Data])=0,\"\",MAX(DadosDeDespesas[Data]))","v":""}]
[null,"INFORMAÇÕES DOS FUNCIONÁRIOS:"]
[null,"NOME",{"$nulls":3},"CARGO",{"$nulls":3},"NSS"]
[null,"DEPARTAMENTO",{"$nulls":3},"GESTOR",{"$nulls":3},"ID DO FUNCIONÁRIO"]
[]
[null,"Data","Conta","Descrição","Hotel","Transporte","Combustível","Refeições","Telefone","Entretenimento","Diversos","Total"]
[{"$nulls":11},{"$f":"SUM(DadosDeDespesas[[#This Row],[Hotel]:[Diversos]])","v":{"v":0,"d":"0.00 €"}}]
[{"$nulls":11},{"$f":"SUM(DadosDeDespesas[[#This Row],[Hotel]:[Diversos]])","v":{"v":0,"d":"0.00 €"}}]
[{"$nulls":11},{"$f":"SUM(DadosDeDespesas[[#This Row],[Hotel]:[Diversos]])","v":{"v":0,"d":"0.00 €"}}]
[{"$nulls":11},{"$f":"SUM(DadosDeDespesas[[#This Row],[Hotel]:[Diversos]])","v":{"v":0,"d":"0.00 €"}}]
[{"$nulls":11},{"$f":"SUM(DadosDeDespesas[[#This Row],[Hotel]:[Diversos]])","v":{"v":0,"d":"0.00 €"}}]
[{"$nulls":11},{"$f":"SUM(DadosDeDespesas[[#This Row],[Hotel]:[Diversos]])","v":{"v":0,"d":"0.00 €"}}]
[{"$nulls":11},{"$f":"SUM(DadosDeDespesas[[#This Row],[Hotel]:[Diversos]])","v":{"v":0,"d":"0.00 €"}}]
[{"$nulls":11},{"$f":"SUM(DadosDeDespesas[[#This Row],[Hotel]:[Diversos]])","v":{"v":0,"d":"0.00 €"}}]
[{"$nulls":11},{"$f":"SUM(DadosDeDespesas[[#This Row],[Hotel]:[Diversos]])","v":{"v":0,"d":"0.00 €"}}]
[{"$nulls":11},{"$f":"SUM(DadosDeDespesas[[#This Row],[Hotel]:[Diversos]])","v":{"v":0,"d":"0.00 €"}}]
[{"$nulls":11},{"$f":"SUM(DadosDeDespesas[[#This Row],[Hotel]:[Diversos]])","v":{"v":0,"d":"0.00 €"}}]
[null,"Total",null,null,{"$f":"SUBTOTAL(109,DadosDeDespesas[Hotel])","v":{"v":0,"d":"0.00 €"}},{"$f":"SUBTOTAL(109,DadosDeDespesas[Transporte])","v":{"v":0,"d":"0.00 €"}},{"$f":"SUBTOTAL(109,DadosDeDespesas[Combustível])","v":{"v":0,"d":"0.00 €"}},{"$f":"SUBTOTAL(109,DadosDeDespesas[Refeições])","v":{"v":0,"d":"0.00 €"}},{"$f":"SUBTOTAL(109,DadosDeDespesas[Telefone])","v":{"v":0,"d":"0.00 €"}},{"$f":"SUBTOTAL(109,DadosDeDespesas[Entretenimento])","v":{"v":0,"d":"0.00 €"}},{"$f":"SUBTOTAL(109,DadosDeDespesas[Diversos])","v":{"v":0,"d":"0.00 €"}},{"$f":"SUBTOTAL(109,DadosDeDespesas[Total])","v":{"v":0,"d":"0.00 €"}}]
[{"$nulls":10},"SUBTOTAL",{"$f":"DadosDeDespesas[[#Totals],[Total]]","v":{"v":0,"d":"0.00 €"}}]
[null,"APROVADO:",{"$nulls":3},"NOTAS: ",{"$nulls":4},"ADIANTAMENTOS",{"v":0,"d":"0.00 €"}]
[{"$nulls":10},"TOTAL",{"$f":"Subtotal-Adiantamentos","v":{"v":0,"d":"0.00 €"}}]